bitfinex/quotes_SOLUSD_20260119
["timestamp","ask_amount","ask_price","bid_price","bid_amount"]
[1768832082747,7.5935866,133.45,133.42,4.56913647]
[1768832082748,1.63453273,133.45,133.42,4.56913647]
[1768832083047,7.59347105,133.45,133.43,1.622832]
[1768832083849,9.12800378,133.45,133.42,4.64639094]
[1768832084035,1.53453273,133.44,133.42,1.622832]
[1768832093058,1.53453273,133.44,133.41,1.49792968]
[1768832093755,1.61780276,133.43,133.39,1.49792968]
[1768832094537,1.61780276,133.43,133.39,12.01829045]
[1768832095665,9.11258063,133.43,133.39,4.52148862]
[1768832095963,1.61780276,133.42,133.39,4.52148862]
[1768832097061,1.61780276,133.42,133.39,4.51941898]
[1768832097859,1.61780276,133.41,133.37,12.01719482]
[1768832098242,1.61780276,133.41,133.38,1.49792968]
[1768832099843,1.61780276,133.41,133.38,4.51941898]
[1768832100661,1.61780276,133.41,133.38,1.49792968]
[1768832100862,1.61780276,133.4,133.36,4.51941898]
[1768832101343,1.61780276,133.4,133.36,1.49792968]
[1768832102662,1.61780276,133.39,133.36,1.49792968]
[1768832103369,9.11431586,133.4,133.37,1.49792968]
[1768832103544,1.61780276,133.39,133.37,1.49792968]
[1768832103742,1.61780276,133.39,133.35,8.99673658]
[1768832104043,1.61780276,133.39,133.36,1.49792968]
[1768832106062,9.11469559,133.39,133.36,1.49792968]
[1768832109573,4.63929206,133.38,133.34,1.49792968]
[1768832109863,1.61780276,133.37,133.34,1.49792968]
[1768832110059,1.55780276,133.37,133.35,1.49792968]
[1768832110372,3.0214893,133.38,133.35,1.49792968]
[1768832110666,7.49689283,133.39,133.35,1.49792968]
[1768832110844,10.51838213,133.39,133.35,1.49792968]
[1768832111349,7.49689283,133.39,133.35,1.49792968]
[1768832111651,10.51838213,133.39,133.35,1.49792968]
[1768832111967,1.61780276,133.38,133.35,1.49792968]
[1768832113265,1.61780276,133.38,133.34,1.49792968]
[1768832113266,1.61780276,133.37,133.34,1.49792968]
[1768832116674,7.49764993,133.38,133.35,1.49792968]
[1768832116878,9.11485378,133.39,133.35,1.49792968]
[1768832118056,9.11485378,133.39,133.36,1.49792968]
[1768832118376,1.61780276,133.42,133.38,1.49792968]
[1768832118951,9.11293092,133.42,133.38,1.49792968]
[1768832119273,7.49512816,133.42,133.38,1.49792968]
[1768832119474,1.61780276,133.41,133.38,1.49792968]
[1768832121773,9.11293092,133.42,133.39,1.49792968]
[1768832121952,1.61780276,133.41,133.39,1.49792968]
[1768832124477,9.06696297,133.42,133.39,1.49792968]
[1768832125652,21.75855949,133.43,133.4,1.46841592]
[1768832125653,9.06665143,133.43,133.4,1.46841592]
[1768832125858,9.06607928,133.44,133.4,3.0214893]
[1768832126070,9.06607928,133.44,133.41,3.0214893]
[1768832127875,9.06607928,133.44,133.41,4.48990522]
[1768832131376,1.57183481,133.43,133.39,1.46841592]
[1768832131559,9.0668556,133.43,133.4,3.0214893]
[1768832131964,9.0668556,133.43,133.4,4.48990522]
[1768832132459,9.0668556,133.43,133.4,1.46841592]
[1768832138072,1.57183481,133.42,133.4,1.46841592]
[1768832139087,9.06722791,133.42,133.4,1.46841592]
[1768832140368,9.06722791,133.42,133.4,1.43841593]
[1768832140977,1.57183481,133.42,133.4,1.43841593]
[1768832141887,9.08179699,133.43,133.4,1.43841593]
[1768832143186,1.58698806,133.42,133.4,1.43841593]
[1768832146895,1.58698806,133.43,133.4,11.95606673]
[1768832147979,1.58698806,133.43,133.4,8.93457743]
[1768832148179,1.58698806,133.43,133.4,4.45990523]
[1768832148494,9.08165045,133.43,133.4,1.43841593]
[1768832150677,9.08165045,133.43,133.4,1.40841594]
[1768832158571,7.49466239,133.43,133.4,1.40841594]
[1768832158787,1.61337139,133.43,133.4,1.40841594]
[1768832158988,1.61337139,133.43,133.4,4.42975638]
[1768832159591,1.61337139,133.43,133.4,1.40841594]
[1768832159789,21.85537978,133.45,133.41,1.57181674]
[1768832159790,1.61337139,133.44,133.41,1.57181674]
[1768832163185,9.10741039,133.44,133.41,1.57181674]
[1768832164388,1.61337139,133.44,133.41,1.57181674]
[1768832165492,9.10746129,133.44,133.41,1.57181674]
[1768832166608,1.61337139,133.44,133.41,1.57181674]
[1768832166813,7.59363617,133.45,133.41,1.57181674]
[1768832166814,9.20700756,133.45,133.41,1.57181674]
[1768832167111,9.20700756,133.45,133.42,1.57181674]
[1768832167806,0.1,133.45,133.44,1.57181674]
[1768832168104,0.1,133.45,133.44,1.54181675]
[1768832168414,0.1,133.45,133.42,3.02134044]
[1768832168914,0.1,133.45,133.43,3.02134044]
[1768832170015,0.1,133.45,133.43,4.59315718]
[1768832171016,0.1,133.45,133.44,1.57181674]
[1768832172315,0.1,133.45,133.44,4.59315718]
[1768832173198,0.1,133.45,133.44,1.57181674]
[1768832179621,0.1,133.45,133.44,4.59315718]
[1768832180123,1.61337139,133.46,133.44,4.59315718]
[1768832180422,0.1,133.47,133.45,4.59315718]
[1768832182321,0.1,133.47,133.45,1.57181674]
[1768832182520,0.1,133.47,133.45,9.06524527]
[1768832183422,0.1,133.47,133.45,12.08658571]
[1768832184031,0.1,133.47,133.45,4.59315718]
[1768832186228,0.1,133.47,133.45,1.57181674]
[1768832187229,0.1,133.47,133.45,12.08659639]
[1768832188707,0.1,133.49,133.46,4.63188067]
[1768832188911,0.1,133.49,133.47,1.61054023]
[1768832189111,0.1,133.49,133.47,4.63188067]
[1768832189314,1.68520165,133.49,133.47,1.61054023]
[1768832192939,0.1,133.49,133.47,1.61054023]
[1768832193124,0.1,133.49,133.47,4.63188067]
[1768832194740,1.68520165,133.49,133.47,3.02134044]
[1768832195634,1.68520165,133.49,133.47,4.63188067]
[1768832196543,0.1,133.49,133.48,1.61054023]
[1768832197711,1.68520165,133.49,133.46,21.05188067]
[1768832198637,0.1,133.49,133.47,1.61054023]
[1768832198946,4.70654209,133.49,133.43,64.21054023]
[1768832199132,1.58520165,133.48,133.44,18.03054023]
[1768832199718,1.52381175,133.47,133.44,18.03054023]
[1768832200738,1.52381175,133.47,133.44,28.54582537]
[1768832205533,1.52381175,133.47,133.45,3.02134044]
[1768832205943,1.52381175,133.47,133.46,3.02134044]
[1768832207240,1.52381175,133.47,133.45,3.02134044]
[1768832207545,1.52381175,133.47,133.45,4.50165146]
[1768832208647,1.52381175,133.47,133.45,11.9950574]
[1768832210249,1.52381175,133.48,133.46,3.02134044]
[1768832210732,0.1,133.49,133.47,4.50165146]
[1768832210938,1.62381175,133.49,133.47,4.50165146]
[1768832214044,0.1,133.5,133.47,3.02134044]
[1768832214346,0.1,133.5,133.48,4.49619769]
[1768832215134,1.6220427,133.5,133.48,3.02134044]
[1768832216796,1.6220427,133.5,133.47,28.4082515]
[1768832217834,1.6220427,133.5,133.47,23.91205381]
[1768832218068,1.6220427,133.5,133.47,26.93339425]
[1768832218561,1.6220427,133.5,133.47,23.91205381]
[1768832218763,1.6220427,133.5,133.47,26.93339425]
[1768832218959,1.6220427,133.5,133.47,28.4082515]
[1768832220761,1.6220427,133.5,133.47,26.93339425]
[1768832220967,1.6220427,133.5,133.47,26.92969364]
[1768832221167,1.6220427,133.5,133.47,28.40455089]
[1768832221873,1.6220427,133.5,133.48,3.01763983]
[1768832222871,1.6220427,133.5,133.48,10.50931201]
[1768832223041,1.6220427,133.5,133.49,4.49249708]
[1768832223042,0.1,133.5,133.49,4.49249708]
[1768832223247,0.1,133.51,133.49,4.49249708]
[1768832223854,1.6220427,133.51,133.49,4.49249708]
[1768832225051,1.6220427,133.51,133.49,11.98340246]
[1768832225237,1.6220427,133.51,133.49,4.49249708]
[1768832225441,1.6220427,133.51,133.49,1.47485725]
[1768832225658,1.6220427,133.51,133.49,4.49249708]
[1768832227146,1.6220427,133.51,133.49,11.98363536]
[1768832228369,1.6220427,133.51,133.49,4.49249708]
[1768832229773,1.6220427,133.51,133.49,11.98360452]
[1768832230074,0.1,133.51,133.49,11.98360452]
[1768832230371,1.6220427,133.51,133.49,11.98360452]
[1768832230870,0.1,133.51,133.49,11.98360452]
[1768832231271,1.6220427,133.51,133.49,11.98360452]
[1768832231667,1.6220427,133.51,133.49,4.49249708]
[1768832231863,1.6220427,133.51,133.49,3.01763983]
[1768832232763,1.6220427,133.51,133.48,8.96636332]
[1768832232964,1.6220427,133.51,133.49,3.01763983]
[1768832237278,1.6220427,133.51,133.48,8.96636332]
[1768832237578,1.6220427,133.51,133.45,11.98585689]
[1768832237579,1.5220427,133.49,133.45,11.98585689]
[1768832237873,1.5220427,133.49,133.45,26.91099964]
[1768832238179,1.5220427,133.48,133.44,11.98631551]
[1768832238397,1.5220427,133.47,133.44,7.49381843]
[1768832238677,1.5220427,133.47,133.43,4.49249708]
[1768832238976,1.5220427,133.47,133.43,20.89249708]
[1768832239399,1.5220427,133.47,133.43,1.47485725]
[1768832239592,1.5220427,133.47,133.43,17.87485725]
[1768832240280,1.5220427,133.46,133.43,17.87485725]
[1768832240884,1.5220427,133.46,133.43,16.4]
[1768832241296,1.5220427,133.45,133.41,8.97030157]
[1768832241474,1.5220427,133.44,133.4,1.47485725]
[1768832241781,1.5220427,133.42,133.39,8.97139143]
[1768832242094,1.48008605,133.42,133.39,8.97139143]
[1768832243083,1.48008605,133.42,133.38,9.01894228]
[1768832243379,1.48008605,133.42,133.38,12.03658211]
[1768832246821,1.55297806,133.41,133.38,1.52179656]
[1768832247088,1.55297806,133.41,133.38,9.01912768]
[1768832248157,1.49365643,133.41,133.38,9.01912768]
[1768832248358,7.49418345,133.44,133.39,1.52179656]
[1768832248665,3.01763983,133.43,133.39,1.52179656]
[1768832249886,10.51224657,133.43,133.39,1.52179656]
[1768832250087,10.51224657,133.43,133.39,9.01859754]
[1768832250297,1.55297806,133.43,133.4,1.52179656]
[1768832255976,4.57061789,133.44,133.41,1.52179656]
[1768832256182,1.55297806,133.43,133.41,1.52179656]
[1768832256387,1.55297806,133.43,133.4,9.01791317]
[1768832256582,3.01763983,133.44,133.4,9.01791317]
[1768832256583,1.55297806,133.45,133.42,4.53943639]
[1768832256892,1.55297806,133.45,133.42,1.52179656]
[1768832257094,1.55297806,133.45,133.42,4.53943639]
[1768832257793,1.55297806,133.46,133.43,1.52179656]
[1768832258091,1.55297806,133.47,133.44,1.52179656]
[1768832259490,1.55297806,133.47,133.43,10.51204701]
[1768832259697,1.55297806,133.47,133.44,3.01763983]
[1768832260078,1.55297806,133.47,133.44,4.51265275]
[1768832260295,1.57213634,133.48,133.45,4.51265275]
[1768832261499,1.57213634,133.48,133.45,12.00608053]
[1768832262274,1.57213634,133.48,133.46,3.01763983]
[1768832262693,1.57213634,133.48,133.45,4.51265275]
[1768832267591,1.57213634,133.49,133.46,4.51265275]
[1768832268806,1.57213634,133.48,133.46,4.51265275]
[1768832270779,9.06299073,133.5,133.47,4.51265275]
[1768832271491,1.57213634,133.49,133.47,4.51265275]
[1768832271679,1.57213634,133.49,133.45,7.49313166]
[1768832271998,1.57213634,133.49,133.46,4.51265275]
[1768832275993,9.06335898,133.49,133.46,4.51265275]
[1768832276189,1.61169943,133.48,133.45,1.50906401]
[1768832276400,1.61169943,133.48,133.45,4.52670384]
[1768832276701,1.61169943,133.48,133.45,3.01763983]
[1768832276882,1.61169943,133.48,133.45,4.52670384]
[1768832279889,1.61169943,133.48,133.46,3.01763983]
[1768832280102,1.61169943,133.49,133.47,3.01763983]
[1768832280795,1.71169943,133.51,133.48,4.52670384]
[1768832281089,1.71169943,133.51,133.49,3.01699191]
[1768832282001,1.61169943,133.52,133.5,3.01699191]
[1768832284984,1.61169943,133.52,133.51,3.01699191]
[1768832285183,1.61169943,133.52,133.5,3.01699191]
[1768832285590,1.71169943,133.53,133.5,1.50906401]
[1768832285783,9.20067447,133.53,133.51,3.01699191]
[1768832285990,9.20067447,133.53,133.5,4.52605592]
[1768832286608,1.71169943,133.53,133.5,4.52605592]
[1768832287904,1.71169943,133.53,133.51,4.52605592]
[1768832288908,1.71169943,133.53,133.52,3.01699191]
[1768832289113,1.71169943,133.53,133.51,4.52605592]
[1768832290207,9.20078186,133.53,133.51,1.50906401]
[1768832290400,9.20078186,133.53,133.5,1.50906401]
[1768832290599,1.61169943,133.52,133.49,17.90906401]
[1768832290796,1.61169943,133.52,133.5,3.01699191]
[1768832291509,1.71169943,133.53,133.51,3.01699191]
[1768832292404,0.1,133.53,133.51,1.50906401]
[1768832293414,0.1,133.53,133.51,4.52605592]
[1768832294620,1.71169943,133.53,133.51,1.50906401]
[1768832294815,1.71169943,133.53,133.5,4.52605592]
[1768832295725,1.61169943,133.52,133.49,28.41714856]
[1768832295897,1.61169943,133.52,133.5,3.01699191]
[1768832296306,9.20067399,133.53,133.5,4.52605592]
[1768832296513,1.71169943,133.53,133.5,4.52605592]
[1768832302819,9.2006546,133.53,133.5,1.50906401]
[1768832303005,1.57599825,133.52,133.48,4.61834278]
[1768832305415,1.57599825,133.51,133.48,4.61834278]
[1768832307929,7.48969675,133.52,133.49,4.61834278]
[1768832308121,7.58935131,133.53,133.49,4.61834278]
[1768832309526,7.58935131,133.53,133.5,3.01699191]
[1768832309725,7.58935131,133.53,133.5,4.61834278]
[1768832309923,9.16534956,133.53,133.5,1.60135087]
[1768832310129,9.16534956,133.53,133.5,4.61834278]
[1768832310130,1.57599825,133.52,133.5,4.61834278]
[1768832310330,1.67599825,133.53,133.5,4.61834278]
[1768832311931,1.57599825,133.52,133.5,3.01699191]
[1768832312131,1.57599825,133.52,133.49,12.1094649]
[1768832313233,1.57599825,133.52,133.49,3.01699191]
[1768832313532,1.57599825,133.52,133.49,1.60135087]
[1768832316322,1.57599825,133.52,133.49,4.61834278]
[1768832318261,1.57599825,133.52,133.49,10.50817468]
[1768832318425,1.67599825,133.53,133.51,3.01699191]
[1768832319818,1.67599825,133.53,133.5,12.108964]
[1768832320019,0.1,133.53,133.51,4.63211801]
[1768832320730,0.1,133.53,133.52,3.01699191]
[1768832320929,0.1,133.54,133.52,4.63211801]
[1768832321715,1.69368371,133.54,133.52,4.63211801]
[1768832322442,1.69368371,133.54,133.52,1.6151261]
[1768832322946,1.69368371,133.54,133.51,4.63211801]
[1768832324541,1.69368371,133.54,133.51,12.12215885]
[1768832324941,1.69368371,133.54,133.52,1.6151261]
[1768832324942,0.1,133.54,133.52,1.6151261]
[1768832325126,0.1,133.54,133.52,4.63211801]
[1768832328224,0.1,133.54,133.52,1.6151261]
[1768832330748,0.1,133.54,133.52,4.63211801]
[1768832332828,0.1,133.54,133.53,4.5078641]
[1768832333030,0.1,133.55,133.53,1.49087219]
[1768832333245,0.1,133.55,133.53,4.5078641]
[1768832334153,0.1,133.55,133.53,1.49087219]
[1768832336056,1.59401368,133.55,133.51,7.48982839]
[1768832336365,1.49401368,133.54,133.5,28.39849502]
[1768832338455,1.49401368,133.54,133.5,25.38150311]
[1768832338762,1.49401368,133.54,133.5,28.39849502]
[1768832338942,1.49401368,133.54,133.51,1.49087219]
[1768832340345,1.49401368,133.54,133.51,4.5078641]
[1768832342961,1.49401368,133.54,133.51,4.50684423]
[1768832343560,7.5882433,133.55,133.52,4.50684423]
[1768832343561,1.59401368,133.55,133.52,4.50684423]
[1768832344870,9.08186997,133.55,133.52,4.50684423]
[1768832345850,1.59401368,133.55,133.52,4.50684423]
[1768832347351,9.08190455,133.55,133.52,4.50684423]
[1768832348063,1.49401368,133.54,133.52,1.49087219]
[1768832348453,1.49401368,133.54,133.52,4.50684423]
[1768832349858,1.59401368,133.55,133.52,4.50684423]
[1768832350259,9.08195741,133.55,133.52,4.50684423]
[1768832353573,9.08195741,133.55,133.52,1.49087219]
[1768832354669,1.49401368,133.54,133.52,1.49087219]
[1768832355654,1.59401368,133.55,133.52,4.50684423]
[1768832356365,1.59401368,133.55,133.53,1.49087219]
[1768832356564,0.1,133.55,133.53,1.49087219]
[1768832356978,0.1,133.56,133.54,1.49087219]
[1768832357154,0.1,133.56,133.54,4.50684423]
[1768832357349,0.1,133.56,133.55,3.01597204]
[1768832357549,0.1,133.56,133.54,4.50684423]
[1768832359870,0.1,133.56,133.54,11.99503234]
[1768832360072,0.1,133.56,133.55,1.49087219]
[1768832362178,0.1,133.57,133.55,4.50684423]
[1768832363072,0.1,133.57,133.56,4.58525116]
[1768832364155,0.1,133.58,133.56,4.58525116]
[1768832364869,1.71982933,133.59,133.57,3.01597204]
[1768832365066,1.71982933,133.59,133.56,4.58525116]
[1768832365271,1.71982933,133.59,133.54,25.4576003]
[1768832365272,1.61982933,133.58,133.54,25.4576003]
[1768832365464,1.61982933,133.58,133.55,3.01597204]
[1768832365871,1.61982933,133.58,133.55,4.58525116]
[1768832366059,1.61982933,133.58,133.54,4.58525116]
[1768832366265,1.61982933,133.57,133.53,4.58525116]
[1768832366463,1.61982933,133.57,133.53,12.07409028]
[1768832369566,1.61982933,133.57,133.54,1.56927912]
[1768832369960,1.61982933,133.57,133.53,9.05811824]
[1768832370163,1.61982933,133.57,133.53,12.07409028]
[1768832371283,1.61982933,133.57,133.53,9.05811824]
[1768832371470,1.61982933,133.57,133.53,12.07409028]
[1768832371669,1.61982933,133.57,133.54,7.48827806]
[1768832373677,1.61982933,133.57,133.53,12.07397068]
[1768832373983,1.61982933,133.55,133.51,20.98525116]
[1768832374160,1.61982933,133.55,133.51,28.47485365]
[1768832374664,1.55982934,133.55,133.51,28.47485365]
[1768832375669,1.55982934,133.55,133.51,9.05888161]
[1768832376375,1.55982934,133.55,133.5,7.49051428]
[1768832376376,3.01597204,133.54,133.5,7.49051428]
[1768832376580,3.01597204,133.54,133.49,12.07616458]
[1768832376763,1.61982933,133.52,133.48,12.07669613]
[1768832376964,1.52250838,133.52,133.48,12.07669613]
[1768832377165,4.53848042,133.52,133.48,9.06072409]
[1768832377485,3.01597204,133.52,133.47,9.06131714]
[1768832378182,3.01597204,133.52,133.47,12.07728918]
[1768832378962,1.61982933,133.51,133.47,12.07728918]
[1768832379389,1.55982934,133.51,133.47,12.07728918]
[1768832379687,1.55982934,133.51,133.48,1.56927912]
[1768832379981,1.55982934,133.51,133.48,9.06096203]
[1768832380185,3.01597204,133.54,133.5,1.56793461]
[1768832380382,156.93517511,133.57,133.5,4.58390665]
[1768832380684,3.01597204,133.55,133.5,4.58390665]
[1768832380877,3.01597204,133.54,133.5,1.56793461]
[1768832381077,3.01597204,133.55,133.5,4.58390665]
[1768832381389,1.5783571,133.53,133.5,4.58390665]
[1768832381588,1.5783571,133.53,133.5,1.56793461]
[1768832382084,1.5783571,133.53,133.5,12.07431763]
[1768832382293,1.5783571,133.54,133.51,1.56793461]
[1768832383484,1.5783571,133.55,133.51,12.07392535]
[1768832383686,1.5783571,133.55,133.52,1.56793461]
[1768832390789,1.5783571,133.56,133.53,1.56793461]
[1768832391770,9.06520865,133.57,133.54,1.56793461]
[1768832393913,1.53931465,133.56,133.53,1.52985963]
[1768832395586,1.53931465,133.55,133.53,1.52985963]
[1768832399696,1.53931465,133.57,133.54,1.52985963]
[1768832403402,1.53931465,133.56,133.53,4.54583167]
[1768832404007,9.02679125,133.56,133.53,1.52985963]
[1768832404186,1.53931465,133.55,133.52,4.54583167]
[1768832404687,9.02679125,133.56,133.53,1.52985963]
[1768832405607,1.53931465,133.55,133.53,1.52985963]
[1768832405816,9.02679125,133.56,133.53,1.52985963]
[1768832408083,1.53931465,133.55,133.53,1.52985963]
[1768832408279,1.53931465,133.55,133.52,1.52985963]
[1768832408609,1.53931465,133.55,133.52,9.01937077]
[1768832408800,1.47931466,133.55,133.52,9.01937077]
[1768832409511,10.50239183,133.57,133.53,1.52985963]
[1768832409808,10.50239183,133.57,133.53,9.01865262]
[1768832410008,7.48638313,133.58,133.54,1.52985963]
[1768832410182,7.58581154,133.59,133.55,1.52985963]
[1768832410383,7.58581154,133.59,133.56,1.52985963]
[1768832410687,9.12512619,133.59,133.56,1.52985963]
[1768832411299,9.12512619,133.59,133.56,4.54524725]
[1768832411499,9.12512619,133.59,133.56,1.52985963]
[1768832412317,1.53931465,133.58,133.55,1.52985963]
[1768832413203,1.53931465,133.57,133.54,17.92985963]
[1768832415015,1.53931465,133.57,133.54,25.41815172]
[1768832415216,1.53931465,133.57,133.54,28.43353934]
[1768832415390,1.53931465,133.57,133.54,26.90367971]
[1768832415589,9.02548438,133.58,133.55,1.52985963]
[1768832416317,1.53931465,133.58,133.55,4.54524725]
[1768832416710,1.63931465,133.59,133.56,1.52985963]
[1768832417418,1.63931465,133.59,133.56,4.54524725]
[1768832418011,1.63931465,133.59,133.56,1.52985963]
[1768832418198,9.12498465,133.59,133.56,1.52985963]
[1768832419305,0.1,133.59,133.58,1.52985963]
[1768832419612,1.63931465,133.59,133.56,12.03246162]
[1768832419913,1.63931465,133.59,133.56,4.54524725]
[1768832420113,1.63931465,133.59,133.57,1.52985963]
[1768832420299,1.57931466,133.59,133.56,1.52985963]
[1768832422399,9.06503894,133.59,133.56,1.52985963]
[1768832422610,1.53931465,133.58,133.54,9.01818299]
[1768832423093,1.53931465,133.58,133.54,1.52985963]
[1768832423716,1.53931465,133.58,133.54,9.01822414]
[1768832424096,1.53931465,133.58,133.54,12.03361176]
[1768832424298,1.53931465,133.58,133.55,1.49327396]
[1768832424500,1.53931465,133.58,133.54,8.98163847]
[1768832424706,1.53931465,133.58,133.54,11.99702609]
[1768832427520,1.53931465,133.58,133.55,4.50866158]
[1768832427818,1.53931465,133.58,133.55,1.49327396]
[1768832428814,1.53931465,133.58,133.55,11.99648119]
[1768832429423,1.53931465,133.58,133.55,4.50866158]
[1768832430322,1.53931465,133.58,133.55,1.49327396]
[1768832431708,1.53931465,133.58,133.54,8.98142675]
[1768832432917,1.53931465,133.58,133.55,1.49327396]
[1768832438936,1.53931465,133.58,133.55,8.98107191]
[1768832439337,1.61509117,133.57,133.55,1.49327396]
[1768832439727,1.61509117,133.57,133.54,1.49327396]
[1768832440114,1.61509117,133.57,133.53,28.49595572]
[1768832440522,1.61509117,133.57,133.54,1.5918062]
[1768832441837,1.55509118,133.57,133.54,1.5918062]
[1768832442008,7.4867334,133.57,133.53,26.90414952]
[1768832442209,7.4867334,133.57,133.53,28.49595572]
[1768832443741,1.61553115,133.56,133.53,28.49595572]
[1768832444040,1.55553116,133.56,133.54,1.5918062]
[1768832444513,1.55553116,133.56,133.53,28.49595572]
[1768832445236,1.55553116,133.56,133.53,25.4805681]
[1768832446536,1.55553116,133.56,133.53,28.49595572]
[1768832447237,1.61553115,133.58,133.54,1.5918062]
[1768832447425,1.61553115,133.58,133.55,1.5918062]
[1768832448123,1.61553115,133.58,133.54,4.60719382]
[1768832448344,1.55553116,133.58,133.54,4.60719382]
[1768832448519,7.48639031,133.58,133.54,4.60719382]
[1768832449719,0.04000001,133.59,133.56,4.60719382]
[1768832450038,0.04000001,133.59,133.57,1.5918062]
[1768832450635,1.65553116,133.59,133.57,1.5918062]
[1768832451153,0.04000001,133.59,133.57,1.5918062]
[1768832459456,1.52337676,133.59,133.57,1.5918062]
[1768832461148,1.52337676,133.59,133.55,1.55795193]
[1768832461455,1.48337675,133.58,133.55,1.55795193]
[1768832462454,1.42337676,133.58,133.55,1.55795193]
[1768832462656,1.42337676,133.58,133.54,26.9034865]
[1768832462657,7.48650106,133.58,133.54,28.46161247]
[1768832463532,7.48650106,133.58,133.54,1.55795193]
[1768832463732,7.48650106,133.58,133.54,12.06164907]
[1768832464479,1.48337675,133.57,133.54,4.57333955]
[1768832465360,1.48337675,133.57,133.54,4.57242365]
[1768832468061,1.48337675,133.57,133.54,1.55795193]
[1768832468357,1.48337675,133.57,133.54,4.57242365]
[1768832468757,1.48337675,133.57,133.54,1.55795193]
[1768832468962,1.42337676,133.57,133.54,1.55795193]
[1768832469657,7.52587179,133.59,133.56,1.55795193]
[1768832470950,9.00924854,133.59,133.56,1.55795193]
[1768832471349,1.52337676,133.59,133.56,12.05965855]
[1768832472158,1.52337676,133.59,133.57,1.55795193]
[1768832472362,0.04000001,133.59,133.57,4.57242365]
[1768832473255,0.04000001,133.59,133.57,1.55795193]
[1768832474960,0.04000001,133.59,133.57,4.57242365]
[1768832475361,1.48337675,133.6,133.57,4.57242365]
[1768832476864,1.48337675,133.6,133.57,12.05911226]
[1768832479164,1.48337675,133.6,133.57,4.57242365]
[1768832481967,1.42337676,133.6,133.57,4.57242365]
[1768832483669,1.42337676,133.6,133.58,1.59874871]
[1768832483871,1.42337676,133.6,133.57,4.61322043]
[1768832486166,1.42337676,133.6,133.58,1.59874871]
[1768832486366,1.65797668,133.62,133.59,4.61322043]
[1768832486671,1.65797668,133.62,133.59,1.59874871]
[1768832486874,1.65797668,133.62,133.59,4.61322043]
[1768832487077,9.14198377,133.62,133.59,1.59874871]
[1768832487372,1.55797668,133.61,133.58,4.61322043]
[1768832487574,1.55797668,133.61,133.58,1.59874871]
[1768832489566,1.55797668,133.6,133.57,12.09965657]
[1768832489776,1.55797668,133.6,133.58,1.59874871]
[1768832490069,1.55797668,133.61,133.58,4.61322043]
[1768832490270,1.65797668,133.62,133.59,4.61322043]
[1768832490470,1.65797668,133.62,133.6,1.59874871]
[1768832490772,0.1,133.62,133.61,1.59874871]
[1768832491177,0.1,133.62,133.6,1.59874871]
[1768832491359,0.1,133.62,133.6,4.61322043]
[1768832491875,0.1,133.62,133.6,1.59874871]
[1768832493085,1.65797668,133.62,133.6,1.59874871]
[1768832493977,1.65797668,133.62,133.59,12.09864885]
[1768832494679,1.65797668,133.62,133.6,1.59874871]
[1768832497470,0.1,133.62,133.6,1.59874871]
[1768832498779,1.65797668,133.62,133.6,1.59874871]
[1768832499077,0.1,133.63,133.61,1.59874871]
[1768832499476,1.65797668,133.63,133.6,1.59874871]
[1768832503263,9.14144603,133.63,133.6,1.59874871]
[1768832504489,1.56530121,133.62,133.59,12.05991901]
[1768832504787,1.56530121,133.62,133.59,4.57449059]
[1768832505086,1.56530121,133.62,133.58,4.57449059]
[1768832505266,1.56530121,133.62,133.58,3.01447172]
[1768832505675,1.56530121,133.61,133.57,1.56001887]
[1768832506780,1.56530121,133.6,133.57,1.56001887]
[1768832507685,1.56530121,133.6,133.57,9.04667005]
[1768832507887,1.56530121,133.6,133.57,12.06114177]
[1768832510392,1.56530121,133.6,133.57,9.04667005]
[1768832510579,1.56530121,133.6,133.57,1.56001887]
[1768832512486,1.56530121,133.6,133.56,26.90152738]
[1768832512487,1.56530121,133.6,133.56,25.44707453]
[1768832512670,1.56530121,133.59,133.55,9.04757488]
[1768832515673,1.56530121,133.59,133.55,12.0620466]
[1768832518590,1.56530121,133.59,133.55,9.04757488]
[1768832518790,1.56530121,133.59,133.55,12.0620466]
[1768832519887,1.56530121,133.59,133.55,4.57449059]
[1768832519888,1.57942793,133.58,133.55,4.57449059]
[1768832520089,1.57942793,133.58,133.55,12.06220351]
[1768832522097,1.57942793,133.58,133.56,1.59559972]
[1768832522391,1.57942793,133.6,133.57,1.59559972]
[1768832522693,1.57942793,133.6,133.57,4.61007144]
[1768832523192,1.57942793,133.6,133.57,1.59559972]
[1768832523580,1.57942793,133.6,133.57,9.08200998]
[1768832525788,12.077944,133.62,133.58,1.59559972]
[1768832525994,12.077944,133.62,133.59,1.59559972]
[1768832525995,1.57942793,133.62,133.59,1.59559972]
[1768832526192,104.77942793,133.63,133.6,1.59559972]
[1768832528188,0.1,133.64,133.61,1.59559972]
[1768832528392,0.1,133.64,133.62,1.59559972]
[1768832530188,16.4,133.63,133.62,1.59559972]
[1768832530802,16.4,133.63,133.61,1.59559972]
[1768832533391,16.4,133.63,133.61,4.6078579]
[1768832534604,17.97942793,133.63,133.6,1.59559972]
[1768832536792,17.97942793,133.63,133.61,1.59559972]